bitfinex/quotes_SOLUSD_20250403
["timestamp","ask_amount","ask_price","bid_price","bid_amount"]
[1743650453785,0.03,120.54,120.51,110.9431]
[1743650454093,0.03,120.54,120.51,90.198]
[1743650456008,0.03,120.54,120.5,8.2987]
[1743650457398,1.635,120.54,120.49,81.9]
[1743650458283,8.2966,120.53,120.47,9.8746]
[1743650459084,1.635,120.54,120.47,9.8746]
[1743650459085,9.9312,120.54,120.47,9.8746]
[1743650466217,26.0,120.53,120.47,9.8746]
[1743650466415,34.2967,120.53,120.47,9.8746]
[1743650469421,9.931,120.54,120.47,9.8746]
[1743650473320,12.04238184,120.52,120.46,8.3015]
[1743650473740,1.5117,120.49,120.45,0.063]
[1743650473906,12.04238184,120.48,120.45,0.063]
[1743650474106,12.04238184,120.47,120.45,0.063]
[1743650475022,0.42648471,120.48,120.45,0.063]
[1743650475318,12.04238184,120.48,120.45,0.063]
[1743650475624,8.9317,120.49,120.45,0.063]
[1743650475625,17.2314,120.49,120.45,0.063]
[1743650476007,8.9317,120.49,120.45,0.063]
[1743650476927,29.27358184,120.49,120.45,0.063]
[1743650477126,12.04238184,120.48,120.45,0.063]
[1743650477438,8.3008,120.47,120.45,0.063]
[1743650478518,20.34318184,120.47,120.45,0.063]
[1743650479143,12.04238184,120.46,120.45,0.063]
[1743650479640,20.34388184,120.46,120.45,0.063]
[1743650480136,8.3015,120.46,120.45,0.063]
[1743650481814,39.42001541,120.46,120.45,0.063]
[1743650482012,45.72951541,120.46,120.45,0.063]
[1743650482235,47.35771541,120.46,120.45,0.063]
[1743650483845,44.79181043,120.43,120.42,0.063]
[1743650484028,64.53851541,120.43,120.42,0.063]
[1743650484508,33.84648471,120.43,120.42,0.063]
[1743650484713,45.88886655,120.43,120.42,0.063]
[1743650485409,54.19236655,120.43,120.42,0.063]
[1743650485836,42.14998471,120.43,120.42,0.063]
[1743650486050,54.19236655,120.43,120.42,0.063]
[1743650488627,34.3035,120.43,120.42,0.063]
[1743650490727,1.6282,120.46,120.42,0.063]
[1743650490927,13.67058184,120.46,120.42,0.063]
[1743650491163,21.97268184,120.46,120.42,0.063]
[1743650491444,15.86316157,120.47,120.42,0.063]
[1743650491749,20.48554341,120.47,120.42,0.063]
[1743650491956,20.34338184,120.47,120.42,0.063]
[1743650496850,8.301,120.47,120.42,0.063]
[1743650499149,12.46886655,120.46,120.42,0.063]
[1743650500351,12.04238184,120.45,120.42,0.063]
[1743650501145,8.3028,120.44,120.42,0.063]
[1743650503569,97.8511,120.47,120.42,0.063]
[1743650503750,89.55,120.47,120.42,0.063]
[1743650504242,97.8508,120.47,120.42,0.063]
[1743650504942,89.55,120.47,120.42,0.063]
[1743650505140,0.03,120.47,120.42,14.7387]
[1743650505539,0.03,120.47,120.43,18.64964886]
[1743650505839,0.03,120.47,120.44,0.42648471]
[1743650506044,0.03,120.47,120.45,7.42]
[1743650507345,0.03,120.47,120.46,8.3015]
[1743650509038,0.03,120.47,120.46,28.58054886]
[1743650510856,0.03,120.47,120.46,9.9309]
[1743650514751,0.03,120.47,120.46,8.3015]
[1743650515845,0.03,120.47,120.45,0.063]
[1743650517357,0.03,120.47,120.45,18.71264886]
[1743650517935,0.03,120.47,120.46,8.3015]
[1743650532351,0.03,120.47,120.46,26.95114886]
[1743650534246,0.03,120.54,120.47,25.03824886]
[1743650534447,0.03,120.54,120.49,18.64964886]
[1743650534653,0.03,120.54,120.52,26.0]
[1743650534958,0.03,120.54,120.5,82.32648471]
[1743650535171,0.03,120.54,120.52,7.4]
[1743650535687,0.03,120.54,120.53,8.2966]
[1743650538479,0.03,120.58,120.54,18.64964886]
[1743650539761,0.03,120.58,120.53,33.21395388]
[1743650539953,0.03,120.58,120.53,8.2966]
[1743650541775,0.03,120.58,120.53,29.0383]
[1743650543078,0.03,120.58,120.54,18.64964886]
[1743650543671,0.03,120.58,120.55,29.0335]
[1743650545889,0.03,120.58,120.57,26.0]
[1743650546087,0.03,120.58,120.55,29.0335]
[1743650548482,0.03,120.58,120.56,7.4]
[1743650549870,0.03,120.58,120.57,8.2939]
[1743650550883,0.03,120.58,120.57,26.94354886]
[1743650551190,0.03,120.58,120.57,33.86008724]
[1743650553470,0.03,120.58,120.57,8.2939]
[1743650553692,0.03,120.58,120.57,26.94354886]
[1743650554986,0.03,120.58,120.57,8.2939]
[1743650555285,0.03,120.58,120.56,8.2943]
[1743650556265,0.03,120.58,120.57,18.64964886]
[1743650557090,0.03,120.58,120.57,26.94354886]
[1743650560893,0.03,120.58,120.57,27.37003357]
[1743650561470,0.03,120.6,120.58,0.42648471]
[1743650561670,0.03,120.6,120.59,44.64964886]
[1743650562685,0.03,120.6,120.59,52.94214886]
[1743650564803,0.03,120.6,120.59,53.36863357]
[1743650565002,7.6116,120.67,120.6,18.64964886]
[1743650565300,15.8988,120.67,120.6,18.64964886]
[1743650566185,27.94118184,120.67,120.59,136.9239]
[1743650566491,7.6116,120.67,120.6,0.42648471]
[1743650566677,7.6116,120.67,120.61,8.2911]
[1743650568397,7.6116,120.67,120.61,29.019]
[1743650570291,27.94138184,120.67,120.61,8.2911]
[1743650570497,12.18454341,120.66,120.6,7.4]
[1743650570684,0.42648471,120.64,120.55,89.363]
[1743650570995,9.13386157,120.65,120.56,8.2946]
[1743650570996,8.0791,120.63,120.56,8.2946]
[1743650572071,16.3692,120.63,120.56,29.0311]
[1743650572701,12.04238184,120.62,120.56,8.2946]
[1743650573686,8.2911,120.61,120.56,8.2946]
[1743650573906,8.2911,120.61,120.56,8.3576]
[1743650574789,8.2904,120.62,120.56,0.063]
[1743650575693,20.33278184,120.62,120.56,0.063]
[1743650576911,8.2918,120.6,120.56,0.063]
[1743650577900,20.33418184,120.6,120.56,0.063]
[1743650578098,8.2918,120.6,120.56,0.063]
[1743650580910,12.18454341,120.57,120.56,0.063]
[1743650581082,12.46886655,120.57,120.56,0.063]
[1743650582610,20.76276655,120.57,120.56,0.063]
[1743650583110,8.72038471,120.57,120.56,0.063]
[1743650583586,20.76276655,120.57,120.56,0.063]
[1743650583799,46.81241541,120.57,120.56,0.063]
[1743650588016,18.79181043,120.56,120.55,0.063]
[1743650588221,31.11851541,120.56,120.55,0.063]
[1743650588649,39.41311541,120.56,120.55,0.063]
[1743650590011,121.51311541,120.56,120.55,0.063]
[1743650590649,44.64964886,120.54,120.53,0.063]
[1743650591017,56.6920307,120.54,120.53,0.063]
[1743650592115,64.9880307,120.54,120.53,0.063]
[1743650592841,113.58404277,120.54,120.53,0.063]
[1743650593145,115.15604277,120.54,120.53,0.063]
[1743650593333,66.98651541,120.54,120.53,0.063]
[1743650597038,39.75654341,120.54,120.53,0.063]
[1743650597224,26.0,120.54,120.53,0.063]
[1743650598120,46.33838184,120.54,120.53,0.063]
[1743650598437,65.41451541,120.54,120.53,0.063]
[1743650599937,53.37213357,120.54,120.53,0.063]
[1743650600139,65.41451541,120.54,120.53,0.063]
[1743650601318,26.0,120.54,120.53,0.063]
[1743650602138,46.33838184,120.54,120.53,0.063]
[1743650604237,138.50404277,120.54,120.53,0.063]
[1743650605918,53.37213357,120.54,120.53,0.063]
[1743650606124,65.41451541,120.54,120.53,0.063]
[1743650606632,147.51451541,120.54,120.53,0.063]
[1743650608944,172.43451541,120.54,120.53,0.063]
[1743650609530,128.58054341,120.54,120.53,0.063]
[1743650609725,108.24216157,120.54,120.53,0.063]
[1743650609921,94.14238184,120.54,120.53,0.063]
[1743650610237,82.1,120.54,120.53,0.063]
[1743650612633,20.36808184,120.55,120.53,0.063]
[1743650612833,12.04238184,120.54,120.53,0.063]
[1743650613447,12.46886655,120.54,120.53,0.063]
[1743650614048,31.11851541,120.54,120.53,0.063]
[1743650614349,116.94676661,120.54,120.53,0.063]
[1743650614649,116.94676661,120.54,120.46,8.1199]
[1743650614846,20.34178184,120.49,120.46,8.1199]
[1743650615740,12.04238184,120.49,120.46,8.1199]
[1743650615942,12.04238184,120.49,120.45,0.063]
[1743650616253,12.04238184,120.49,120.45,8.365]
[1743650616954,12.04238184,120.49,120.45,0.063]
[1743650617338,38.04238184,120.48,120.45,0.063]
[1743650617542,12.04238184,120.46,120.45,0.063]
[1743650617842,38.46886655,120.47,120.45,0.063]
[1743650621961,31.11851541,120.46,120.45,0.063]
[1743650622759,12.46886655,120.46,120.45,0.063]
[1743650623133,20.77036655,120.46,120.45,0.063]
[1743650623646,39.42001541,120.46,120.45,0.063]
[1743650626560,0.14216157,120.44,120.43,0.063]
[1743650626756,12.46886655,120.44,120.43,0.063]
[1743650628560,20.77166655,120.44,120.43,0.063]
[1743650631352,12.04238184,120.44,120.43,0.063]
[1743650631557,90.4023,120.45,120.43,0.063]
[1743650631760,102.44468184,120.45,120.43,0.063]
[1743650632246,94.14238184,120.45,120.43,0.063]
[1743650632746,82.1,120.45,120.43,0.063]
[1743650633149,94.14238184,120.45,120.43,0.063]
[1743650633370,102.44468184,120.45,120.43,0.063]
[1743650633876,102.47468184,120.45,120.43,0.063]
[1743650636573,8.72928471,120.44,120.43,0.063]
[1743650636749,20.77166655,120.44,120.43,0.063]
[1743650637066,39.42131541,120.44,120.43,0.063]
[1743650638445,12.04238184,120.44,120.43,0.063]
[1743650638696,102.47478184,120.45,120.43,0.063]
[1743650638980,90.4324,120.45,120.43,0.063]
[1743650639153,102.47478184,120.45,120.43,0.063]
[1743650639975,20.34518184,120.44,120.43,0.063]
[1743650640174,39.42131541,120.44,120.43,0.063]
[1743650641276,72.32423345,120.44,120.43,0.063]
[1743650642068,47.39423345,120.44,120.43,0.063]
[1743650643487,72.32423345,120.44,120.43,0.063]
[1743650644381,79.65757207,120.44,120.43,0.063]
[1743650645589,54.72757207,120.44,120.43,0.063]
[1743650646783,46.82131541,120.44,120.43,0.063]
[1743650647059,12.18454341,120.44,120.43,0.063]
[1743650647364,12.46886655,120.44,120.43,0.063]
[1743650647564,0.42648471,120.44,120.43,0.063]
[1743650647765,335.93238184,120.45,120.43,0.063]
[1743650647972,323.89,120.45,120.43,0.063]
[1743650648659,332.1924,120.45,120.43,0.063]
[1743650648859,344.23478184,120.45,120.43,0.063]
[1743650649080,12.04238184,120.44,120.43,0.063]
[1743650649578,12.46886655,120.44,120.43,0.063]
[1743650649786,19.86886655,120.44,120.43,0.063]
[1743650650287,28.17166655,120.44,120.43,0.063]
[1743650651391,46.82131541,120.44,120.43,0.063]
[1743650654287,19.86886655,120.44,120.43,0.063]
[1743650654501,7.82648471,120.44,120.43,0.063]
[1743650654661,19.86886655,120.44,120.43,0.063]
[1743650655387,7.82648471,120.44,120.43,0.063]
[1743650655594,7.4,120.44,120.43,0.063]
[1743650655779,15.7324,120.45,120.43,0.063]
[1743650656395,8.3324,120.45,120.43,0.063]
[1743650656867,26.0,120.44,120.43,0.063]
[1743650657989,0.03,120.45,120.43,0.063]
[1743650668396,12.07238184,120.45,120.43,0.063]
[1743650668585,20.37478184,120.45,120.43,0.063]
[1743650671595,12.46886655,120.44,120.43,0.063]
[1743650671795,19.86886655,120.44,120.43,0.063]
[1743650673781,28.17166655,120.44,120.43,0.063]
[1743650674183,16.12928471,120.44,120.43,0.063]
[1743650674385,28.17166655,120.44,120.43,0.063]
[1743650676509,16.12928471,120.44,120.43,0.063]
[1743650676804,7.4,120.44,120.43,0.063]
[1743650677006,0.03,120.45,120.43,0.063]
[1743650681699,0.03,120.45,120.44,1.5422]
[1743650682105,0.03,120.45,120.44,9.845]
[1743650682923,0.03,120.45,120.44,1.5422]
[1743650683304,0.03,120.45,120.44,9.845]
[1743650692434,0.03,120.45,120.44,9.908]
[1743650694132,0.03,120.45,120.44,0.063]
[1743650694541,0.03,120.45,120.44,8.3658]
[1743650695835,0.03,120.45,120.44,0.063]
[1743650706344,0.03,120.45,120.44,8.3658]
[1743650708127,0.03,120.45,120.44,28.66964886]
[1743650708328,323.78,120.53,120.44,49.42684886]
[1743650710230,323.78,120.53,120.45,18.64964886]
[1743650710552,323.78,120.53,120.46,7.4]
[1743650711536,323.78,120.53,120.46,11.51833042]
[1743650712447,323.78,120.53,120.47,8.3008]
[1743650712448,332.0766,120.53,120.47,8.3008]
[1743650712663,12.04238184,120.5,120.45,15.7019]
[1743650712840,12.04238184,120.5,120.45,8.3019]
[1743650713235,12.46886655,120.51,120.45,8.3019]
[1743650713756,8.2987,120.5,120.44,8.3658]
[1743650714788,26.0,120.49,120.44,8.3658]
[1743650715152,26.0,120.49,120.44,29.123]
[1743650715354,20.33998184,120.52,120.44,29.123]
[1743650715887,332.0769,120.53,120.44,29.123]
[1743650716068,332.0769,120.53,120.45,20.22644886]
[1743650716984,0.03,120.5,120.45,20.22644886]
[1743650717860,0.03,120.5,120.46,29.0552]
[1743650718064,0.03,120.5,120.46,36.4552]
[1743650719563,0.03,120.5,120.46,15.7015]
[1743650725790,0.03,120.5,120.46,36.4552]
[1743650733713,0.03,120.5,120.47,18.64964886]
[1743650733885,0.03,120.5,120.47,24.88804886]
[1743650735315,0.03,120.5,120.48,8.3001]
[1743650738724,0.03,120.5,120.49,18.64964886]
[1743650738939,0.03,120.55,120.49,20.73513357]
[1743650739236,0.03,120.55,120.5,7.4]
[1743650739935,0.03,120.55,120.51,8.298]
[1743650740936,0.03,120.55,120.51,29.0431]
[1743650745537,0.03,120.55,120.51,8.298]
[1743650746119,12.07238184,120.55,120.5,8.2984]
[1743650747556,8.296,120.54,120.48,8.3001]
[1743650749152,8.3255,120.55,120.48,29.0504]
[1743650753454,8.3255,120.55,120.48,29.1134]
[1743650756654,20.36788184,120.55,120.48,29.1134]
[1743650757153,8.3255,120.55,120.48,29.1134]
[1743650762847,0.03,120.55,120.48,29.1134]
[1743650764571,12.07238184,120.55,120.48,29.1134]
[1743650765659,12.07238184,120.55,120.48,8.3631]
[1743650766553,8.296,120.54,120.48,8.3631]
[1743650768456,12.04238184,120.54,120.48,8.3631]
[1743650769246,26.0,120.51,120.48,0.063]
[1743650769454,12.04238184,120.52,120.48,0.063]
[1743650769652,38.04238184,120.51,120.48,0.063]
[1743650770659,46.34108184,120.51,120.48,0.063]
[1743650771542,26.0,120.51,120.48,0.063]
[1743650771745,0.03,120.55,120.48,0.063]
[1743650771955,0.03,120.55,120.49,6.2813]
[1743650772351,12.07238184,120.55,120.49,6.2813]
[1743650772674,20.36788184,120.55,120.49,6.2813]
[1743650772849,20.36788184,120.55,120.5,8.2987]
[1743650773573,8.3255,120.55,120.5,8.2987]
[1743650774065,20.36788184,120.55,120.49,14.5804]
[1743650774253,12.04238184,120.53,120.48,8.3628]
[1743650775170,20.33928184,120.53,120.48,8.3628]
[1743650776453,12.46886655,120.52,120.48,0.063]
[1743650776653,12.04238184,120.51,120.48,0.063]
[1743650776860,13.97296655,120.52,120.48,0.063]
[1743650777665,8.298,120.51,120.48,0.063]
[1743650777848,20.34038184,120.51,120.48,0.063]
[1743650778463,8.298,120.51,120.48,0.063]
[1743650779260,20.34038184,120.51,120.48,0.063]
[1743650781966,26.0,120.49,120.48,0.063]
[1743650783486,8.2994,120.49,120.48,0.063]
[1743650783852,46.34178184,120.49,120.48,0.063]
[1743650784258,46.76826655,120.49,120.48,0.063]
[1743650784458,47.48511541,120.49,120.48,0.063]
[1743650786070,22.38256655,120.49,120.48,0.063]
[1743650787885,41.03221541,120.49,120.48,0.063]
[1743650797507,89.20174277,120.49,120.48,0.063]
[1743650797712,122.10466081,120.49,120.48,0.063]
[1743650798203,26.14216157,120.46,120.45,0.063]
[1743650798375,45.84886655,120.46,120.45,0.063]
[1743650798576,54.15036655,120.46,120.45,0.063]
[1743650799006,72.80001541,120.46,120.45,0.063]
[1743650801401,60.75763357,120.46,120.45,0.063]
[1743650801601,72.80001541,120.46,120.45,0.063]
[1743650821096,60.75763357,120.46,120.45,0.063]
[1743650821414,72.80001541,120.46,120.45,0.063]
[1743650824316,97.73001541,120.46,120.45,0.063]
[1743650829937,56.04851541,120.45,120.44,0.063]
[1743650831233,64.35071541,120.45,120.44,0.063]
[1743650831434,204.05341509,120.45,120.43,0.063]
[1743650831620,64.02143345,120.44,120.43,0.063]
[1743650833340,76.37746822,120.44,120.43,0.063]
[1743650837832,44.00613357,120.43,120.42,0.063]
[1743650838142,110.84785342,120.43,120.42,0.063]
[1743650838330,62.67832606,120.43,120.42,0.063]
[1743650838733,70.98182606,120.43,120.42,0.063]
[1743650839441,45.07613357,120.41,120.4,0.063]
[1743650839635,0.42648471,120.4,120.37,0.063]
[1743650839837,12.46886655,120.38,120.37,0.063]
[1743650840642,26.0,120.38,120.37,0.063]
[1743650840833,0.42648471,120.4,120.37,0.063]
[1743650841643,12.46886655,120.4,120.37,0.063]
[1743650842435,20.77446655,120.4,120.37,0.063]
[1743650844541,89.48,120.41,120.38,6.2542]
[1743650844742,102.87296655,120.43,120.38,6.2542]
[1743650844940,110.25296655,120.43,120.38,6.2542]
[1743650847749,82.1,120.45,120.39,1.5733]
[1743650847937,94.14238184,120.45,120.39,1.5733]
[1743650848134,339.72386157,120.46,120.39,1.5733]
[1743650848339,331.28,120.46,120.4,6.3157]
[1743650848740,323.9,120.46,120.4,6.3157]
[1743650849934,323.9,120.46,120.41,8.3049]
[1743650850650,323.93,120.46,120.41,8.3049]
[1743650853437,323.93,120.46,120.41,29.0672]
[1743650853656,0.03,120.46,120.42,8.0533]
[1743650853957,0.03,120.46,120.43,8.3035]
[1743650856653,0.03,120.46,120.43,29.0624]
[1743650859158,0.03,120.46,120.43,8.3035]
[1743650862148,0.03,120.46,120.42,16.3575]
[1743650865969,0.03,120.46,120.42,37.1181]
[1743650872251,0.03,120.46,120.43,18.64964886]
[1743650873674,0.03,120.46,120.44,7.38]
[1743650873882,0.03,120.46,120.45,8.3022]
[1743650877674,0.03,120.46,120.44,8.3026]
[1743650877872,0.03,120.46,120.43,8.3033]
[1743650880082,0.03,120.46,120.42,8.3039]
[1743650880270,0.03,120.46,120.41,8.3049]
[1743650884396,12.07238184,120.46,120.4,8.3685]
[1743650884694,12.04238184,120.45,120.4,8.3685]
[1743650885270,12.07238184,120.46,120.4,8.3685]
[1743650885494,19.45238184,120.46,120.4,8.3685]
[1743650885995,0.03,120.46,120.4,29.1326]
[1743650891403,0.03,120.46,120.41,26.02964886]
[1743650891785,0.03,120.46,120.43,18.64964886]
[1743650891986,0.03,120.46,120.44,1.6038]
[1743650892794,0.03,120.46,120.45,8.3022]
[1743650896297,0.03,120.46,120.45,34.31184886]
[1743650897803,0.03,120.48,120.46,18.64964886]
[1743650899623,0.03,120.48,120.47,26.95044886]
[1743650905323,0.03,120.48,120.47,8.3008]
[1743650908809,0.03,120.48,120.46,8.3015]
[1743650920212,0.03,120.48,120.46,8.3645]
[1743650926537,0.03,120.48,120.47,18.64964886]
[1743650927618,0.03,120.5,120.47,100.97613357]
[1743650927817,0.03,120.5,120.49,18.64964886]
[1743650928149,0.03,120.52,120.49,18.64964886]
[1743650928847,0.03,120.52,120.5,8.2987]
[1743650947251,0.03,120.55,120.51,19.07613357]
[1743650947457,0.03,120.55,120.52,7.36]
[1743650948657,0.03,120.55,120.5,29.0455]
[1743650952750,0.03,120.55,120.5,8.2987]
[1743650954260,8.3253,120.55,120.5,8.2987]
[1743650955742,12.04238184,120.54,120.49,8.3621]
[1743650956665,12.07238184,120.55,120.49,0.063]
[1743650958157,19.82886655,120.54,120.49,0.063]
[1743650958753,28.12526655,120.54,120.49,0.063]
[1743650961148,8.2973,120.52,120.49,0.063]
[1743650962283,12.04238184,120.51,120.49,0.063]
[1743650962569,38.04238184,120.5,120.49,0.063]
[1743650963264,46.34108184,120.5,120.49,0.063]
[1743650963859,34.2987,120.5,120.49,0.063]
[1743650964260,62.29036655,120.5,120.49,0.063]
[1743650965166,61.86388184,120.5,120.49,0.063]
[1743650966868,49.8215,120.5,120.49,0.063]
[1743650967165,34.9964,120.5,120.49,0.063]
[1743650967380,6.3431,120.53,120.49,0.063]
[1743650967381,23.6063,120.53,120.49,0.063]
[1743650970374,8.9662,120.53,120.49,0.063]
[1743650975582,0.03,120.55,120.49,0.063]
[1743650976063,0.03,120.55,120.49,1.6301]
[1743650976675,0.03,120.55,120.5,18.64964886]
[1743650977472,0.03,120.55,120.5,8.2987]
[1743650990286,0.03,120.58,120.55,1.6144]
[1743650990600,0.03,120.58,120.56,7.36]
[1743650991887,0.03,120.58,120.55,1.6144]
[1743650992198,0.03,120.58,120.54,6.3333]
[1743650992407,0.03,120.58,120.55,8.2953]
[1743650992608,26.0,120.56,120.52,8.2973]
[1743650992814,38.04238184,120.56,120.52,8.2973]
[1743650992983,7.34,120.55,120.52,8.2973]
[1743650993184,7.34,120.55,120.49,0.063]
[1743650994100,7.34,120.55,120.49,8.3624]
[1743651000698,12.04238184,120.53,120.49,0.063]
[1743651001101,12.46886655,120.54,120.49,0.063]
[1743651001497,19.38238184,120.55,120.49,0.063]
[1743651001714,7.37,120.55,120.49,0.063]
[1743651002105,0.03,120.55,120.49,18.71264886]
[1743651002518,0.03,120.55,120.5,29.0455]
[1743651002925,0.03,120.55,120.51,18.64964886]
[1743651003425,0.03,120.55,120.5,35.4035]
[1743651004204,0.03,120.55,120.5,14.6567]
[1743651004405,0.03,120.55,120.5,8.2987]
[1743651004630,0.03,120.55,120.49,0.063]
[1743651006325,0.03,120.55,120.49,18.71264886]
[1743651006326,26.03,120.55,120.49,18.71264886]
[1743651006528,0.03,120.55,120.49,18.71264886]
[1743651007033,0.03,120.55,120.5,29.0455]
[1743651007630,0.03,120.55,120.5,30.5891]
[1743651013529,0.03,120.55,120.5,30.6521]
[1743651015538,26.0,120.54,120.5,0.063]
[1743651015852,19.41238184,120.55,120.5,0.063]
[1743651016030,13.59028184,120.53,120.5,0.063]
[1743651016926,0.42648471,120.52,120.5,0.063]
[1743651017640,26.0,120.51,120.5,0.063]
[1743651017852,45.80886655,120.51,120.5,0.063]
[1743651018426,64.45851541,120.51,120.5,0.063]
[1743651018933,72.75651541,120.51,120.5,0.063]
[1743651020449,0.42648471,120.5,120.49,0.063]
[1743651020621,12.46886655,120.5,120.49,0.063]
[1743651020953,20.76756655,120.5,120.49,0.063]
[1743651021764,39.41721541,120.5,120.49,0.063]
[1743651022543,26.0,120.5,120.49,0.063]
[1743651022847,434.82718184,120.53,120.49,0.063]
[1743651023044,414.4879,120.53,120.49,0.063]
[1743651023748,426.53028184,120.53,120.49,0.063]
[1743651024531,414.4879,120.53,120.49,0.063]
[1743651024735,332.3879,120.53,120.49,0.063]
[1743651025559,330.84,120.53,120.49,0.063]
[1743651027139,323.5,120.53,120.49,0.063]
[1743651027732,20.36798184,120.55,120.49,0.063]
[1743651028157,0.45648471,120.55,120.49,0.063]
[1743651028961,8.75178471,120.55,120.49,0.063]
[1743651033979,20.79416655,120.55,120.49,0.063]
[1743651035973,0.03,120.55,120.49,0.063]
[1743651036765,0.03,120.55,120.5,1.6172]
[1743651038093,0.03,120.55,120.51,8.298]
[1743651038884,0.03,120.55,120.52,6.0896]
[1743651040184,0.03,120.55,120.53,8.2966]
[1743651042485,0.03,120.55,120.54,18.64964886]
[1743651042671,0.03,120.58,120.54,18.64964886]
[1743651042872,0.03,120.58,120.55,7.34]
[1743651043497,0.03,120.58,120.56,8.2946]
[1743651044569,0.03,120.59,120.57,24.98954886]
[1743651044764,0.03,120.6,120.57,24.98954886]
[1743651045387,0.03,120.6,120.57,29.2370714]
[1743651045992,0.03,120.6,120.58,8.2932]
[1743651050892,0.03,120.6,120.57,8.2937]
[1743651051083,0.03,120.6,120.56,81.9]
[1743651051992,0.03,120.6,120.56,90.1943]
[1743651057593,0.03,120.6,120.57,18.64964886]
[1743651058383,0.03,120.6,120.57,25.98964886]
[1743651059000,0.03,120.6,120.58,8.2932]
[1743651059186,0.03,120.61,120.59,26.71964886]
[1743651060701,0.03,120.61,120.6,8.2918]
[1743651060910,0.03,120.63,120.61,18.64964886]
[1743651061079,0.03,120.63,120.61,25.98964886]
[1743651062215,0.03,120.65,120.62,0.42648471]
[1743651062510,0.03,120.65,120.63,18.64964886]
[1743651062883,0.03,120.65,120.64,8.2891]
[1743651064216,0.03,120.65,120.62,81.9]
[1743651064999,1.601,120.65,120.58,15.6959]
[1743651066913,8.2891,120.64,120.58,15.6959]
[1743651067787,8.2891,120.64,120.58,0.063]
[1743651068014,19.17326868,120.63,120.58,0.063]
[1743651068199,26.51326868,120.63,120.58,0.063]
[1743651068399,7.34,120.63,120.58,0.063]
[1743651068598,7.34,120.63,120.58,8.3555]
[1743651068892,7.34,120.63,120.58,0.063]
[1743651069112,0.03,120.65,120.59,20.15064886]
[1743651069796,0.03,120.65,120.6,0.42648471]
[1743651069999,0.03,120.65,120.61,7.34]
[1743651071022,0.03,120.65,120.62,8.2904]
[1743651071228,0.03,120.65,120.62,29.0166]
[1743651071416,0.03,120.65,120.64,6.4203]
[1743651071716,0.03,120.68,120.65,18.64964886]
[1743651071922,0.03,120.68,120.65,25.98964886]
[1743651072092,0.03,120.68,120.65,7.34]
[1743651073199,0.03,120.68,120.65,15.628]
[1743651075211,0.03,120.68,120.65,8.288]
[1743651076708,0.03,120.68,120.65,47.65864886]
[1743651077698,0.03,120.68,120.66,7.32]
[1743651078034,0.03,120.68,120.67,18.64964886]
[1743651078193,0.03,120.68,120.66,89.22]
[1743651078522,0.03,120.68,120.67,8.287]
[1743651079320,0.03,120.68,120.66,97.5075]
[1743651080706,0.03,120.68,120.63,8.2898]
[1743651083423,0.03,120.68,120.62,8.2902]
[1743651083606,0.45648471,120.68,120.62,8.2902]